bitfinex/quotes_ETHUSD_20240730
["timestamp","ask_amount","ask_price","bid_price","bid_amount"]
[1722344567729,2.97594,3360.3,3359.7,2.9764]
[1722344567925,5.95193,3360.3,3359.7,2.9764]
[1722344568175,2.97594,3360.3,3359.7,2.9764]
[1722344568346,2.97606,3360.2,3359.7,2.9764]
[1722344568667,2.9761,3360.1,3359.6,0.2982]
[1722344568869,2.97612,3360.1,3359.6,3.27473]
[1722344570311,2.97612,3360.1,3359.5,3.27483]
[1722344570312,3.05052468,3360.1,3359.5,3.27483]
[1722344570489,2.97623,3360.0,3359.5,2.97663]
[1722344571697,2.97602,3360.2,3359.6,3.27474]
[1722344572057,2.97602,3360.2,3359.1,2.97697]
[1722344572058,2.97659,3359.6,3359.1,2.2539]
[1722344572263,2.97631,3359.9,3359.2,3.03638477]
[1722344572576,2.97638,3359.8,3359.3,0.35772926]
[1722344572967,2.97638,3359.8,3359.3,3.33448926]
[1722344573284,2.97638,3359.8,3359.3,3.27496]
[1722344574086,2.97629,3359.9,3359.5,0.2982]
[1722344574284,3.05066158,3360.0,3359.5,0.2982]
[1722344574285,0.07441158,3360.0,3359.6,0.2982]
[1722344574485,2.97615,3360.1,3359.6,0.2982]
[1722344574688,2.97607,3360.2,3359.7,2.2704]
[1722344574689,2.97601,3360.2,3359.7,2.2704]
[1722344575275,2.97601,3360.2,3359.8,0.03941938]
[1722344575456,0.07440956,3360.3,3359.9,2.97626]
[1722344575661,2.97571,3360.6,3359.9,0.03939952]
[1722344575662,2.97575,3360.5,3359.9,0.03939952]
[1722344575870,2.97571,3360.6,3360.1,2.97609]
[1722344575871,2.97572,3360.6,3360.1,2.97609]
[1722344576075,2.97578,3360.5,3360.0,0.03937967]
[1722344576275,2.97578,3360.5,3359.9,2.97627]
[1722344576518,2.97578,3360.5,3360.1,0.03935982]
[1722344576662,2.97578,3360.5,3360.0,0.03937967]
[1722344577008,2.97578,3360.5,3360.1,0.03935982]
[1722344577178,2.97578,3360.5,3359.9,5.95242]
[1722344577378,2.97578,3360.5,3360.0,3.01555967]
[1722344579398,2.97578,3360.5,3360.0,0.03937967]
[1722344580336,5.95159,3360.5,3360.0,0.03937967]
[1722344580498,2.97597,3360.3,3360.0,0.03937967]
[1722344580699,2.9761,3360.1,3360.0,0.03937967]
[1722344581007,2.9761,3360.1,3360.0,0.03928377]
[1722344581255,2.9761,3360.1,3359.7,0.2982]
[1722344581424,2.9761,3360.1,3360.0,0.03928377]
[1722344581626,0.07439803,3360.2,3359.7,0.2982]
[1722344581839,3.05040554,3360.3,3360.0,0.03928377]
[1722344582168,2.97593,3360.3,3359.8,3.27452]
[1722344582372,2.97593,3360.3,3360.1,0.03926392]
[1722344582573,2.97593,3360.3,3359.8,3.27452]
[1722344582872,2.97593,3360.3,3359.9,0.03930362]
[1722344584874,3.05024554,3360.4,3359.9,3.01557362]
[1722344585439,2.97594,3360.3,3359.9,0.03930362]
[1722344585744,2.97594,3360.3,3359.8,3.27454]
[1722344585957,2.97594,3360.3,3360.0,0.03928377]
[1722344586139,2.97594,3360.3,3359.9,0.03930362]
[1722344586345,2.97566,3360.6,3360.1,5.48293392]
[1722344586553,3.05020008,3360.5,3360.1,2.4676]
[1722344586749,3.05020008,3360.5,3360.2,0.03924407]
[1722344587251,3.05020008,3360.5,3360.3,0.03792422]
[1722344587454,2.97583,3360.4,3360.1,2.4676]
[1722344588180,2.97583,3360.4,3359.8,2.7658]
[1722344588480,2.97602,3360.2,3359.7,0.2982]
[1722344588797,2.97602,3360.2,3359.7,3.27464]
[1722344588933,3.05033007,3360.3,3359.8,3.27455]
[1722344590276,2.97593,3360.3,3359.9,0.03674319]
[1722344591238,3.0503001,3360.4,3359.9,0.03674319]
[1722344591436,2.97585,3360.4,3360.0,2.3271]
[1722344591635,2.97585,3360.4,3360.0,2.36382334]
[1722344593571,2.97593,3360.3,3360.0,0.03672334]
[1722344593941,2.97593,3360.3,3359.8,3.27456]
[1722344594142,2.97593,3360.3,3360.1,0.03670349]
[1722344594376,2.97593,3360.3,3359.8,3.27456]
[1722344594685,2.97593,3360.3,3359.9,2.97627]
[1722344594885,5.95191,3360.3,3359.9,0.03674319]
[1722344595047,2.97593,3360.3,3359.9,0.03674319]
[1722344595642,3.05041013,3360.2,3359.9,0.03674319]
[1722344595836,2.97619,3360.0,3359.7,0.2982]
[1722344597271,2.97611,3360.1,3359.7,0.2982]
[1722344597478,2.97614,3360.1,3359.7,0.2982]
[1722344598005,2.97611,3360.1,3359.7,0.2982]
[1722344598302,2.97611,3360.1,3359.4,2.4661]
[1722344598303,0.07440725,3360.0,3359.4,2.4661]
[1722344598504,0.07440725,3360.0,3359.5,0.2982]
[1722344598708,0.07440725,3360.0,3359.6,2.97652]
[1722344599289,0.07440725,3360.0,3359.6,2.97648]
[1722344599478,2.9761,3360.1,3359.6,2.97647]
[1722344599807,0.07441145,3360.0,3359.6,2.97647]
[1722344600549,2.9761,3360.1,3359.6,2.97653]
[1722344600718,0.07441145,3360.0,3359.6,2.97653]
[1722344601052,3.05060145,3360.0,3359.6,2.97653]
[1722344601281,3.57859401,3360.3,3359.6,2.97649]
[1722344601282,3.05043144,3360.2,3359.6,2.97649]
[1722344601555,2.97602,3360.2,3359.6,2.97647]
[1722344601728,2.97602,3360.2,3359.7,2.97644]
[1722344601916,2.97584,3360.4,3359.8,2.97632]
[1722344602250,2.97572,3360.6,3359.8,2.97632]
[1722344602251,2.97575,3360.5,3359.9,2.97622]
[1722344602435,2.97584,3360.4,3359.9,2.97623]
[1722344602643,3.904967,3360.5,3359.9,2.97623]
[1722344603012,2.97585,3360.4,3359.9,2.97623]
[1722344603915,2.97592,3360.3,3359.8,2.97629]
[1722344604153,2.97592,3360.3,3359.8,3.03581099]
[1722344604356,5.9519,3360.3,3359.8,2.97629]
[1722344604649,2.97619,3360.0,3359.6,7.35]
[1722344604819,2.97614,3360.1,3359.6,10.32653]
[1722344605033,2.97619,3360.0,3359.6,10.32654]
[1722344605359,2.97612,3360.1,3359.7,0.03462807]
[1722344605526,2.9762,3360.0,3359.7,0.03462807]
[1722344606441,2.9762,3360.0,3359.8,35.0]
[1722344606641,2.9762,3360.0,3359.8,35.03460821]
[1722344609060,2.97593,3360.3,3359.8,35.03460821]
[1722344609265,2.97578,3360.5,3360.0,2.97617]
[1722344609416,2.3627,3360.7,3360.2,2.976]
[1722344609417,2.97559,3360.7,3360.2,2.976]
[1722344609617,7.45,3361.5,3360.5,0.978]
[1722344609818,3.59877177,3362.7,3360.5,0.978]
[1722344609819,2.61271038,3361.8,3361.1,0.978]
[1722344610010,10.45,3362.1,3361.3,3.95303]
[1722344610011,2.97456,3361.9,3361.3,3.95303]
[1722344610224,10.45,3362.1,3361.4,35.03425874]
[1722344610225,2.97464,3361.8,3361.4,35.03425874]
[1722344610670,2.97474,3361.7,3361.4,35.03425874]
[1722344610870,2.97486,3361.5,3361.4,35.03425874]
[1722344611014,6.92772,3361.5,3361.4,35.03425874]
[1722344611216,5.94972,3361.5,3361.4,0.03425874]
[1722344611465,3.0492434,3361.5,3360.9,3.27357]
[1722344611625,3.0492434,3361.5,3360.9,6.24891]
[1722344611833,3.0492434,3361.5,3361.0,35.03405046]
[1722344612158,5.32011,3362.4,3361.0,35.03405046]
[1722344612159,2.9742,3362.3,3361.6,2.97476]
[1722344612468,0.07436507,3362.2,3361.7,0.03385126]
[1722344612813,2.97438,3362.1,3361.7,0.03385126]
[1722344613014,2.9745,3361.9,3361.4,2.97494]
[1722344613262,5.94907,3361.9,3361.5,0.03389093]
[1722344613451,2.9745,3361.9,3361.3,2.97503]
[1722344613758,2.9745,3361.9,3361.6,0.0338711]
[1722344613917,2.9745,3361.9,3361.3,2.97503]
[1722344614118,2.9745,3361.9,3361.7,0.03385126]
[1722344614342,2.97438,3362.1,3361.5,2.97479]
[1722344614537,2.97438,3362.1,3361.8,0.03383143]
[1722344614865,2.97425,3362.2,3361.9,0.0338116]
[1722344615078,2.97425,3362.2,3361.7,2.97468]
[1722344615291,3.04872377,3362.1,3362.0,0.03379177]
[1722344615454,3.34614877,3362.1,3361.5,2.97486]
[1722344615650,2.97442,3362.0,3361.5,2.97486]
[1722344616050,2.97415,3362.3,3361.5,2.97486]
[1722344616290,2.97398,3362.5,3361.9,2.97442]
[1722344616462,2.97408,3362.4,3361.9,2.97442]
[1722344618078,2.97417,3362.3,3361.7,3.03410677]
[1722344618265,2.97425,3362.2,3361.7,2.97462]
[1722344618463,2.97425,3362.2,3361.5,2.97482]
[1722344618464,3.04860847,3362.2,3361.5,2.97482]
[1722344618663,2.97455,3361.9,3361.3,10.32495]
[1722344618903,0.07436756,3361.8,3361.3,2.97503]
[1722344619086,0.07436756,3361.8,3361.1,2.5599]
[1722344619087,0.07436755,3361.8,3361.1,2.5599]
[1722344619295,0.3792593,3361.8,3361.1,0.2982]
[1722344619464,2.97492,3361.5,3361.0,42.35]
[1722344619792,2.9748,3361.6,3361.0,45.32523]
[1722344619964,6.02366755,3361.8,3361.1,2.9752]
[1722344620297,3.04898755,3361.8,3361.2,0.03112808]
[1722344620588,2.97474,3361.7,3361.1,2.97519]
[1722344620789,2.97474,3361.7,3361.3,0.03110824]
[1722344621093,2.97474,3361.7,3361.4,0.03108841]
[1722344621300,2.97474,3361.7,3361.1,2.97519]
[1722344621451,3.04914349,3361.6,3361.5,0.03106857]
[1722344621654,2.975,3361.4,3361.0,42.35]
[1722344623187,0.0743737,3361.3,3361.0,42.35]
[1722344623393,2.97521,3361.1,3361.0,7.35]
[1722344623594,0.66942089,3361.1,3360.7,0.2982]
[1722344623875,0.07438289,3361.1,3360.8,35.0]
[1722344624720,3.04955328,3361.2,3360.8,35.0]
[1722344624876,2.97535,3361.0,3360.8,35.0]
[1722344625474,2.97531,3361.0,3360.8,35.0]
[1722344625720,2.97539,3360.9,3360.8,35.0]
[1722344625883,2.97513,3361.2,3360.7,0.2982]
[1722344626084,2.97558,3360.7,3360.4,3.0]
[1722344626280,3.04984105,3360.9,3360.3,5.7491]
[1722344626585,3.04984105,3360.9,3360.4,35.0]
[1722344626905,0.07439105,3360.9,3360.4,37.97574]
[1722344627110,3.04975106,3361.0,3360.5,0.2982]
[1722344627297,3.04975106,3361.0,3360.4,2.97574]
[1722344627692,3.04975106,3361.0,3360.5,35.0]
[1722344627905,6.02511106,3361.0,3360.5,35.0]
[1722344628106,3.04975106,3361.0,3360.5,35.0]
[1722344628311,2.9754,3360.9,3360.5,35.0]
[1722344628885,2.97552,3360.8,3360.5,35.0]
[1722344629309,2.97565,3360.6,3360.5,35.0]
[1722344629515,2.43869106,3361.0,3360.5,35.0]
[1722344629516,2.97555,3360.8,3360.5,35.0]
[1722344629921,6.01044517,3361.0,3360.5,35.0]
[1722344629922,2.97539,3360.9,3360.5,35.0]
[1722344630122,3.04969106,3361.0,3360.5,35.0]
[1722344630341,2.97524,3361.1,3360.6,3.2738]
[1722344630491,2.97524,3361.1,3360.6,2.9756]
[1722344630694,3.04953721,3361.2,3360.6,2.9756]
[1722344631309,3.04953721,3361.2,3360.6,3.2738]
[1722344631634,2.97523,3361.1,3360.6,2.9756]
[1722344632329,3.04950721,3361.2,3360.7,0.2982]
[1722344632534,0.07438721,3361.2,3360.3,2.97584]
[1722344632740,3.04941337,3361.3,3360.6,2.97561]
[1722344632904,0.07438337,3361.2,3360.8,2.97547]
[1722344633392,0.07438337,3361.2,3360.9,2.4466]
[1722344633825,0.07438337,3361.2,3361.0,35.0]
[1722344634232,0.07438294,3361.3,3361.0,35.0]
[1722344634450,2.3967,3361.9,3361.1,0.0595039]
[1722344634609,2.346,3362.6,3361.1,0.0595039]
[1722344634610,2.3642,3362.3,3361.2,2.97512]
[1722344635235,5.9737,3362.9,3361.4,2.97489]
[1722344635236,2.97438,3362.1,3361.4,2.97489]
[1722344635533,2.97428,3362.2,3361.6,2.97471]
[1722344635841,2.97428,3362.2,3361.6,5.94941]
[1722344636128,2.97428,3362.2,3361.7,35.03145128]
[1722344636986,2.97439,3362.1,3361.7,35.03145128]
[1722344638867,5.94841,3362.3,3361.7,35.03145128]
[1722344639161,2.97424,3362.2,3361.7,35.03145128]
[1722344639447,2.97434,3362.1,3361.7,35.03145128]
[1722344640020,2.97434,3362.1,3361.7,35.0]
[1722344640228,2.97434,3362.1,3361.8,0.03025176]
[1722344640429,3.0,3363.0,3361.7,2.3843]
[1722344640651,2.97378,3362.8,3361.8,0.08974091]
[1722344640950,2.97404,3362.5,3361.8,3.00484176]
[1722344641170,2.97404,3362.5,3361.9,35.0]
[1722344641516,2.97407,3362.4,3362.0,0.0302121]
[1722344642171,2.97395,3362.6,3362.1,35.0]
[1722344642458,2.97398,3362.5,3362.2,0.02971105]
[1722344642813,2.97398,3362.5,3362.0,2.97441]
[1722344643017,3.04824548,3362.6,3362.1,38.00405087]
[1722344643360,2.97381,3362.7,3362.1,35.02973087]
[1722344643563,2.97389,3362.6,3362.1,35.02973087]
[1722344643706,2.97397,3362.5,3362.1,35.02973087]
[1722344643912,2.97381,3362.7,3362.1,38.00399087]
[1722344644108,2.97381,3362.7,3362.2,2.97422]
[1722344644507,2.97381,3362.7,3362.3,0.02969122]
[1722344645064,0.07434908,3362.8,3362.4,0.0296714]
[1722344645290,0.07434908,3362.8,3362.1,35.0]
[1722344645291,3.04808908,3362.8,3362.1,35.0]
[1722344645497,0.0743499,3362.7,3362.5,0.02942096]
[1722344645664,0.0743499,3362.7,3362.1,35.0]
[1722344645993,2.3864,3363.2,3362.2,3.06319044]
[1722344646293,2.3864,3363.2,3362.3,2.97411]
[1722344646294,3.52344,3363.1,3362.3,2.97411]
[1722344646544,0.55,3363.1,3362.4,2.97406]
[1722344646710,0.55,3363.1,3362.4,3.00351852]
[1722344647004,0.07434903,3363.0,3362.4,0.02945852]
[1722344647170,7.087952,3363.1,3362.4,0.02945852]
[1722344647356,0.07434901,3363.0,3362.4,0.02945852]
[1722344647794,2.97364,3362.9,3362.4,0.02945852]
[1722344647995,0.07434907,3362.8,3362.4,0.02945852]
[1722344648309,0.07434907,3362.8,3362.1,37.97432]
[1722344648310,0.07434907,3362.8,3362.5,0.02940677]
[1722344648804,0.07434907,3362.8,3362.0,2.97437]
[1722344648953,0.07434907,3362.8,3362.6,0.02938695]
[1722344649152,2.3173,3362.6,3361.9,0.2982]
[1722344649403,3.0483455,3362.5,3362.0,35.0]
[1722344649612,0.53656455,3362.4,3362.0,35.0]
[1722344649753,0.07435961,3362.3,3361.7,7.6482]
[1722344649960,0.07435961,3362.3,3361.7,0.2982]
[1722344650160,0.07435961,3362.3,3361.7,3.27286]
[1722344650472,2.97428,3362.2,3361.8,35.02960231]
[1722344650688,0.07436136,3362.1,3361.8,35.02960231]
[1722344651352,2.97447,3362.0,3361.8,0.02960231]
[1722344651554,0.07436502,3361.9,3361.8,0.02960231]
[1722344651793,0.07436502,3362.0,3361.6,35.0]
[1722344651997,3.04878502,3362.0,3361.8,0.02964491]
[1722344652204,3.04878502,3362.0,3361.7,0.02966474]
[1722344652205,0.97296516,3362.0,3361.7,0.02966474]
[1722344652495,0.97296516,3362.0,3361.8,0.02964491]
[1722344652884,0.97296516,3362.0,3361.6,35.0]
[1722344653078,0.97296516,3362.0,3361.9,0.02962508]
[1722344653294,0.07436502,3362.1,3361.7,2.97462]
[1722344653599,0.07436503,3362.2,3361.9,0.02962508]
[1722344653798,0.07436503,3362.4,3361.8,0.02964491]
[1722344654106,0.07436503,3362.4,3361.9,0.02962508]
[1722344654596,3.04843503,3362.4,3361.6,38.27296]
[1722344654795,2.97417,3362.3,3362.0,0.02960525]
[1722344654970,0.07436259,3362.2,3361.6,35.2982]
[1722344655173,0.07436259,3362.2,3362.1,0.02958543]
[1722344655386,0.07436259,3362.2,3361.6,35.2982]
[1722344655584,0.07436259,3362.2,3362.1,0.02958543]
[1722344656103,0.07436146,3362.3,3361.6,35.2982]
[1722344656259,0.07436146,3362.3,3362.1,0.02958543]
[1722344656460,0.62335161,3362.3,3361.6,35.0]
[1722344656801,3.04864299,3362.2,3361.7,0.02966474]
[1722344657385,2.97434,3362.1,3361.7,0.02966474]
[1722344657682,0.07436529,3362.0,3361.7,0.02966474]
[1722344658798,0.07436524,3362.1,3361.7,0.02966474]
[1722344659496,0.07436524,3362.1,3361.5,2.97485]
[1722344659707,0.07436524,3362.1,3361.8,0.02964491]
[1722344660000,2.4416,3362.5,3361.8,2.97456]
[1722344660326,0.55,3362.4,3361.9,0.02962508]
[1722344660602,0.55,3362.4,3362.0,35.0]
[1722344660973,0.55,3362.4,3362.1,0.02958543]
[1722344661173,3.04856093,3362.3,3362.1,0.02958543]
[1722344661388,0.0743609,3362.2,3362.1,0.02958543]
[1722344662485,0.0743609,3362.3,3362.1,0.02958543]
[1722344664521,1.22835805,3362.4,3362.1,0.02958543]
[1722344664816,0.55,3362.4,3362.1,0.02958543]
[1722344665182,2.4698,3362.8,3362.1,0.08907414]
[1722344665384,2.4698,3362.8,3362.2,2.97419]
[1722344665585,2.97357,3363.0,3362.2,5.94837]
[1722344665820,2.97357,3363.0,3362.3,0.02962737]
[1722344665989,0.07434902,3362.9,3362.3,3.00377737]
[1722344666192,0.07434902,3362.9,3362.4,35.0]
[1722344666595,0.07434902,3362.9,3362.5,0.02958773]
[1722344668234,0.823988,3363.0,3362.5,0.02958773]
[1722344668446,2.97332,3363.3,3362.5,3.00355773]
[1722344668656,0.55,3363.2,3362.5,3.00350773]
[1722344669142,0.55,3363.2,3362.6,2.97388]
[1722344669434,0.55,3363.2,3362.6,5.33138]
[1722344669745,0.55,3363.2,3362.7,0.02954808]
[1722344670233,5.33148,3363.4,3362.7,0.02954808]
[1722344670234,0.07434384,3363.1,3362.7,0.02954808]
[1722344670451,2.97358,3363.0,3362.4,35.0]
[1722344670593,0.07434512,3362.9,3362.4,35.0]
[1722344670946,0.07434512,3362.9,3362.5,0.02958773]
[1722344671737,0.07434406,3363.0,3362.5,0.02958773]
[1722344671966,3.04787406,3363.0,3362.5,0.02958773]
[1722344672333,0.07434406,3363.0,3362.5,0.02958773]
[1722344673860,0.07434406,3363.0,3362.6,35.0]
[1722344674062,0.07434406,3363.0,3362.7,0.02942038]
[1722344674263,0.07434406,3363.0,3362.4,2.97404]
[1722344674458,0.07434406,3363.0,3362.5,0.02946002]
[1722344674660,0.07434406,3363.0,3362.5,35.02946002]
[1722344675050,3.04788406,3363.0,3362.5,35.02946002]
[1722344676060,2.97375,3362.8,3362.5,0.02946002]
[1722344676408,0.07434901,3362.7,3362.1,5.33177]
[1722344676700,0.07434901,3362.7,3362.2,37.9742]
[1722344676909,0.07434901,3362.7,3362.3,0.0297161]
[1722344677195,0.07434899,3362.8,3362.3,0.0297161]
[1722344677417,0.07434899,3362.8,3362.2,37.9742]
[1722344677577,0.07434899,3362.8,3362.4,0.02969486]
[1722344677759,0.07434899,3362.8,3362.3,0.0297161]
[1722344677956,0.07434899,3362.8,3362.5,0.02967362]
[1722344678173,0.40897333,3362.8,3362.4,0.02969486]
[1722344678374,0.07434898,3362.7,3362.6,0.02965238]
[1722344678588,0.40897332,3362.8,3362.5,0.02967362]
[1722344678913,0.07434898,3362.8,3362.6,0.02965238]
[1722344679266,0.07434898,3362.8,3362.3,2.97414]
[1722344679481,0.07434898,3362.8,3362.4,0.02969486]
[1722344679695,2.97354,3363.0,3362.4,0.02969486]
[1722344679696,0.07434899,3362.9,3362.4,0.02969486]
[1722344681489,2.97313,3363.5,3362.7,2.97374]
[1722344681660,0.07433836,3363.4,3362.8,0.02960991]
[1722344681865,3.04755836,3363.4,3362.5,5.22659]
[1722344682175,2.97327,3363.3,3362.6,35.02966759]
[1722344682379,0.07433836,3363.2,3362.6,35.02966759]
[1722344682922,2.9732,3363.4,3362.6,38.00349759]
[1722344683233,0.594635,3363.3,3362.6,38.00349759]
[1722344683603,0.594635,3363.3,3362.7,2.97378]
[1722344683814,1.3825,3363.7,3363.0,2.97353]
[1722344684005,5.432,3363.8,3363.0,2.97353]
[1722344684006,3.0,3363.8,3363.2,2.4483]
[1722344684208,0.0743295,3363.7,3363.2,37.4483]
[1722344684442,0.0743295,3363.7,3363.3,0.02947715]
[1722344684894,5.97287,3363.8,3363.3,3.06216075]
[1722344684895,3.0,3363.8,3363.3,3.06216075]
[1722344685389,5.28808,3364.2,3363.3,3.06980056]
[1722344685390,2.97248,3364.2,3363.3,3.06980056]
[1722344685605,0.07432151,3364.1,3363.3,3.06980056]
[1722344685822,0.07432151,3364.1,3363.4,2.97317]
[1722344686226,0.07432151,3364.1,3363.5,3.0100439]
[1722344686823,0.07432151,3364.1,3363.5,0.0369739]
[1722344688710,0.07432151,3364.1,3363.5,3.0100339]
[1722344689023,0.07431866,3364.2,3363.5,38.0100339]
[1722344689222,3.04682866,3364.2,3363.5,35.0369739]
[1722344689425,2.97261,3364.1,3363.5,35.0369739]
[1722344689734,2.97279,3363.9,3363.5,0.0369739]
[1722344689960,0.07432354,3363.8,3363.5,0.0369739]
[1722344690100,0.07432354,3363.8,3363.2,12.77165]
[1722344690492,0.07432354,3363.8,3363.3,35.04050736]
[1722344691560,3.0470536,3364.0,3363.3,35.04050736]
[1722344692365,2.97278,3363.9,3363.3,35.04050736]
[1722344692570,0.07432355,3363.8,3363.3,35.04050736]
[1722344693185,2.97278,3363.9,3363.3,35.04050736]
[1722344694673,2.97278,3363.9,3363.3,0.04050736]
[1722344695487,3.04716354,3363.8,3363.3,0.04050736]
[1722344695688,3.04722354,3363.8,3363.3,0.04050736]
[1722344695893,2.97292,3363.7,3363.3,0.04050736]
[1722344696266,0.0743236,3363.6,3363.3,0.04050736]
[1722344696467,3.0473636,3363.6,3363.3,0.04050736]
[1722344696885,2.97311,3363.5,3363.3,0.04050736]
[1722344697696,0.0743236,3363.6,3363.3,0.04050736]
[1722344698372,3.0473736,3363.6,3363.3,0.04050736]
[1722344698906,0.07433187,3363.5,3363.3,0.04050736]
[1722344699110,2.97318,3363.4,3363.3,0.04050736]
[1722344699306,5.94636,3363.4,3363.3,0.04050736]
[1722344699507,2.97336,3363.2,3362.9,35.0]
[1722344699671,0.07433967,3363.1,3363.0,0.04491815]
[1722344701066,0.07433967,3363.1,3362.7,35.2982]
[1722344701411,0.55,3363.4,3362.8,0.02705762]
[1722344701412,0.07433963,3363.3,3362.8,0.02705762]
[1722344701594,3.04761963,3363.3,3362.8,0.04398829]
[1722344701827,0.07433966,3363.2,3362.7,35.2982]
[1722344701999,0.07433966,3363.2,3362.9,0.04395526]
[1722344702197,0.07433966,3363.2,3362.8,0.04398829]
[1722344702431,0.07433966,3363.2,3363.0,0.04392223]
[1722344702633,3.52318,3363.4,3362.9,0.04395526]
[1722344702900,3.52318,3363.4,3363.0,0.04392223]
[1722344703102,3.52318,3363.4,3362.7,38.27195]
[1722344703330,3.52318,3363.4,3362.8,0.04398829]
[1722344703745,0.07433816,3363.5,3362.8,3.01765829]
[1722344703959,2.97301,3363.6,3362.8,3.07712941]
[1722344703960,3.04734256,3363.6,3362.8,3.07712941]
[1722344704248,3.04734256,3363.6,3362.8,3.01765829]
[1722344704452,2.9732,3363.4,3362.8,0.04398829]
[1722344704616,0.07433261,3363.3,3362.8,0.04398829]
[1722344704948,2.97336,3363.2,3362.7,35.0]
[1722344705150,2.97353,3363.0,3362.9,0.04395526]
[1722344705484,2.97353,3363.0,3362.8,0.04398829]
[1722344705598,5.94706,3363.0,3362.9,0.04395526]
[1722344706025,2.97376,3362.8,3362.4,7.35]
[1722344706363,2.97353,3363.0,3362.5,35.0]
[1722344706709,2.97363,3362.9,3362.6,0.2982]
[1722344707319,2.97348,3363.1,3362.6,0.2982]
[1722344707645,3.04789552,3363.0,3362.6,0.2982]
[1722344708420,0.07434552,3363.0,3362.6,0.2982]
[1722344708611,2.97364,3362.9,3362.6,0.2982]
[1722344708813,2.9738,3362.7,3362.6,0.2982]
[1722344709102,3.04805593,3362.8,3362.5,0.2982]
[1722344709303,0.07434585,3362.9,3362.5,0.2982]
[1722344709805,0.07434585,3362.9,3362.6,35.0]
[1722344710843,0.07434585,3362.9,3362.6,35.2982]
[1722344711549,3.04798585,3362.9,3362.6,35.2982]
[1722344711841,2.97356,3363.0,3362.6,35.2982]
[1722344712147,2.97373,3362.8,3362.6,35.2982]
[1722344712299,2.9738,3362.7,3362.6,35.2982]
[1722344712498,0.04274026,3362.8,3362.6,35.2982]
[1722344712746,3.01647026,3362.8,3362.6,35.2982]
[1722344713178,0.04274026,3362.8,3362.6,35.2982]
[1722344713475,3.01647026,3362.8,3362.6,35.2982]
[1722344713835,0.04274026,3362.8,3362.6,35.2982]
[1722344714145,2.97359,3363.0,3362.5,0.2982]
[1722344714342,0.04274026,3362.9,3362.5,0.2982]
[1722344714574,2.9738,3362.7,3362.6,35.2982]
[1722344714750,2.97371,3362.8,3362.6,35.2982]
[1722344714951,2.97371,3362.8,3362.6,0.2982]
[1722344715352,3.01636026,3362.9,3362.6,0.2982]
[1722344715585,0.04274026,3362.8,3362.6,35.2982]
[1722344715884,3.01636026,3362.9,3362.6,35.2982]
[1722344716808,2.97371,3362.8,3362.6,35.2982]
[1722344719177,2.97371,3362.8,3362.3,0.2982]
[1722344719377,2.97371,3362.8,3362.5,0.2982]
[1722344719684,2.97371,3362.8,3362.6,35.0]
[1722344720040,0.04274026,3362.9,3362.6,35.0]
[1722344720689,3.01637026,3362.9,3362.6,35.0]
[1722344721597,0.04274026,3362.9,3362.6,35.0]
[1722344723514,3.01636026,3362.9,3362.6,35.0]
[1722344724218,0.04274026,3362.9,3362.6,35.0]
[1722344725474,3.01637026,3362.9,3362.6,35.0]
[1722344727272,0.04274026,3362.9,3362.6,35.0]
[1722344728108,0.04274026,3362.9,3362.6,35.2982]
[1722344728722,0.04274026,3363.0,3362.6,35.2982]
[1722344729418,3.01632026,3363.0,3362.6,35.2982]
[1722344729751,2.2517,3363.7,3362.7,3.6046]
[1722344730037,2.2517,3363.7,3362.9,0.976]
[1722344730038,2.97323,3363.4,3362.9,0.976]
[1722344730243,0.04274026,3363.3,3362.9,0.976]
[1722344730438,0.04274026,3363.3,3362.9,35.976]
[1722344730901,0.04274026,3363.3,3362.9,0.976]
[1722344731874,0.04274026,3363.3,3363.0,0.13734254]
[1722344732804,3.01602026,3363.3,3362.7,3.6046]
[1722344733031,2.97328,3363.3,3363.1,0.13723084]
[1722344733305,2.97328,3363.3,3362.7,3.6046]
[1722344733306,3.01617026,3363.2,3362.7,3.6046]
[1722344734337,0.04274026,3363.2,3362.7,3.6046]
[1722344734534,3.01601026,3363.3,3362.7,3.6046]
[1722344734848,0.04274026,3363.2,3362.7,3.6046]
[1722344735779,3.01611026,3363.2,3362.7,3.6046]
[1722344735937,2.97337,3363.2,3362.7,3.6046]
[1722344736453,5.94681,3363.2,3362.7,3.6046]
[1722344736656,2.97362,3362.9,3362.6,0.2982]
[1722344736877,3.01645026,3362.8,3362.6,0.2982]
[1722344737791,3.01645026,3362.8,3362.3,0.2982]
[1722344737942,2.97371,3362.8,3362.3,0.2982]
[1722344738440,2.97385,3362.7,3362.3,0.2982]
[1722344739066,2.97391,3362.6,3362.3,0.2982]
[1722344739847,2.97393,3362.6,3362.3,0.2982]
[1722344740277,2.97393,3362.6,3362.5,0.2982]
[1722344740586,2.97393,3362.6,3362.5,0.43555201]
[1722344742387,3.01654026,3362.7,3362.5,0.43555201]
[1722344742604,0.04274026,3362.7,3362.5,0.43555201]
[1722344742885,0.008,3363.0,3362.7,0.2982]
[1722344743198,0.008,3363.0,3362.8,0.43554279]
[1722344743411,2.98154,3363.0,3362.8,0.43554279]
[1722344743558,3.02428026,3363.0,3362.8,0.43554279]
[1722344743758,3.02428026,3363.0,3362.8,0.2982]
[1722344743981,3.02428026,3363.0,3362.9,0.13731964]
[1722344744373,3.02428026,3363.0,3362.7,0.2982]
[1722344744574,3.02428026,3363.0,3362.9,0.13731964]
[1722344744796,3.02428026,3363.0,3362.8,0.13734279]
[1722344744957,0.05074026,3363.0,3362.9,0.13731964]
[1722344745294,0.05074026,3363.0,3362.7,2.64]
[1722344745599,0.05074026,3363.0,3362.8,0.13734279]
[1722344745985,0.05074026,3363.0,3362.7,2.64]
[1722344746186,0.05074026,3363.0,3362.9,0.13731964]
[1722344746391,0.05074026,3363.0,3362.8,0.13734279]
[1722344746693,0.05074026,3363.0,3362.9,0.13731964]
[1722344746948,0.05074026,3363.0,3362.7,2.64]
[1722344747212,3.02428026,3363.0,3362.8,0.13734279]
[1722344747507,3.02428026,3363.0,3362.7,0.2982]
[1722344747663,3.02428026,3363.0,3362.8,0.13734279]